[Event "40th Cappelle Open 2024"]
[Site "Cappelle-la-Grande"]
[Date "2024.03.08"]
[Round "9.9"]
[White "Boyer, Mahel"]
[Black "Vlachos, Anatole"]
[Result "1-0"]
[ECO "D36"]
[WhiteElo "2415"]
[BlackElo "2479"]
[Annotator "TA"]
[PlyCount "89"]
[EventDate "2024.03.02"]
[EventType "swiss"]
[EventCountry "FRA"]
[SourceTitle "playchess.com"]
[Source "ChessBase"]
[SourceQuality "1"]
[TimeControl "40/5400+30:1800+30"]

{[%evp 22,89,19,0,13,0,10,0,0,0,0,0,0,0,0,0,0,0,13,0,23,0,142,-13,-22,-22,-8,0,0,-59,-51,-62,0,-8,-16,-9,-9,-11,-12,-16,0,0,0,0,0,0,0,0,0,0,0,0,0,0,0,0,0,0,0,0,169,146,171,132,508,531,541,425,442,458]} 1. d4 {[%emt 0:00:28]} d5 {[%emt 0:00:04]} 2. c4 {[%emt 0:00:21]} e6 {[%emt 0:00:44]} 3. Nc3 {[%emt 0:00:31]} Nf6 {[%emt 0:00:04]} 4. cxd5 {[%emt 0:00:10]} exd5 {[%emt 0:00:04]} 5. Bg5 {[%emt 0:00:04]} c6 {[%emt 0:00:04]} 6. e3 {[%emt 0:00:09]} Be7 {[%emt 0:00:03]} 7. Bd3 {[%emt 0:00:28]} Nbd7 {[%emt 0:00:03][%cal Bb8d7,Bd7f6,Bf6h5][%mdl 32]} 8. h3 {[%emt 0:02:23]} O-O {[%emt 0:00:49]} 9. Nf3 {[%emt 0:00:03]} Re8 {[%emt 0:00:07]} 10. O-O {[%emt 0:00:39]} Ne4 {[%emt 0:00:51]} 11. Bf4 {[%emt 0:00:56]} Ndf6 {[%emt 0:23:32]} 12. Qc2 {[%emt 0:06:53][%cal Rc3e4]} Bd6 {[%emt 0:00:05]} 13. Ne5 {[%emt 0:00:55]} g6 {[%emt 0:02:46]} 14. f3 {[%emt 0:12:02]} Nxc3 {[%emt 0:00:22] Die Stellung ist ausgeglichen.} 15. bxc3 {[%emt 0:00:07]} Nh5 {[%emt 0:04:17]} 16. Bh2 {[%emt 0:33:20]} f6 {[%emt 0:04:11]} 17. Ng4 {[%emt 0:13:03] Und Bxd6 würde nun gewinnen.} Bxh2+ {[%emt 0:03:59]} 18. Kxh2 {[%emt 0:00:06][%cal Od3g6]} Qd6+ {[%emt 0:01:33]} 19. f4 {[%emt 0:00:22][%cal Od3g6] Schwarz muss nun Bxg6! beachten.} Ng7 {[%emt 0:18:25]} 20. Rae1 {[%emt 0:01:02]} Kf8 {[%emt 0:01:34] [#]} 21. Ne5 $1 {[%emt 0:09:13][%cal Od3g6]} Qd8 {[%emt 0:11:09] [#]} (21... Bf5 $11) (21... Kg8 22. Ng4) 22. Nf3 $2 {[%emt 0:07:54]} (22. Bxg6 $1 $16 hxg6 23. Qxg6) 22... Bf5 $11 {[%emt 0:00:51]} 23. g4 {[%emt 0:00:30]} Bxd3 {[%emt 0:00:47]} 24. Qxd3 {[%emt 0:00:02]} Qd6 {[%emt 0:01:30]} 25. g5 {[%emt 0:01:01]} ({Vorzuziehen ist} 25. Nd2 $11) 25... Nf5 $15 {[%emt 0:00:07][%cal Oe8e3]} 26. Kg2 {[%emt 0:01:36]} Re4 {[%emt 0:04:10]} (26... fxg5 $15 27. Nxg5 Qd7) 27. gxf6 $11 {[%emt 0:06:02]} Qxf6 {[%emt 0:01:11]} 28. Ng5 {[%emt 0:00:31]} Re7 {[%emt 0:00:41] Droht stark ...Rae8.} 29. e4 {[%emt 0:02:23]} dxe4 {[%emt 0:00:11]} 30. Rxe4 {[%emt 0:00:02]} Rae8 {[%emt 0:02:58] ...h6 wäre nun fies.} 31. Rfe1 {[%emt 0:00:03][%cal Og5h7]} Kg7 {[%emt 0:00:06]} 32. Re5 {[%emt 0:02:39]} c5 {[%emt 0:04:59]} 33. Rxe7+ {[%emt 0:00:31]} Rxe7 {[%emt 0:00:01]} 34. Rxe7+ {[%emt 0:00:07]} Qxe7 {[%emt 0:01:32]} 35. dxc5 {[%emt 0:00:02][%mdl 4096] Endspiel. KQN-KQN} Kh6 {[%emt 0:00:26]} 36. Ne4 {[%emt 0:00:46]} Qe6 {[%emt 0:00:33]} 37. c4 {[%emt 0:00:25]} Qa6 {[%emt 0:00:40]} 38. a3 {[%emt 0:00:21]} Qa5 {[%emt 0:01:07]} 39. Kf2 {[%emt 0:00:18]} Qc7 {[%emt 0:00:33]} 40. Kf3 {[%emt 0:01:30]} Qe7 $2 {[%emt 0:03:41] [#]} (40... Qc6 $11 {und Schwarz muss sich keine Sorgen machen.}) 41. Nd6 $1 $18 {[%emt 0:03:10]} Nh4+ {[%emt 0:14:15]} 42. Kg4 {[%emt 0:09:28]} Ng2 $2 {[%emt 0:00:44][%mdl 8192]} (42... Nf5 $16 {leistet mehr Widerstand.}) 43. Kg3 {[%emt 0:01:04] Weiß steht klar auf Gewinn.} Nh4 {[%emt 0:06:47] Wehrt Nf5+ ab. ( -> ...Qe1+)} 44. Qd4 {[%emt 0:04:57] Droht Qe5 und aus. Aktives Gegenspiel!} g5 {[%emt 0:01:13]} 45. Qe5 {[%emt 0:00:45] Gewichteter Fehlerwert: Weiß=0.11 (sehr präzise) /Schwarz=0.30.  Verlustzug:     	---       	Schwarz=2     Fehler:       	Weiß=2     	Schwarz=2     OK:         	Weiß=13    	Schwarz=16    Bester:       	Weiß=4     	Schwarz=1     Stark:        	Weiß=1     	---} 1-0

[Event "40th Cappelle Open 2024"]
[Site "Cappelle-la-Grande"]
[Date "2024.03.08"]
[Round "9.10"]
[White "Velten, Paul"]
[Black "Pacher, Milan"]
[Result "0-1"]
[ECO "C45"]
[WhiteElo "2475"]
[BlackElo "2393"]
[Annotator "RC"]
[PlyCount "78"]
[EventDate "2024.03.02"]
[EventType "swiss"]
[EventCountry "FRA"]
[SourceTitle "playchess.com"]
[Source "ChessBase"]
[SourceQuality "1"]
[TimeControl "40/5400+30:1800+30"]

1. e4 {[%emt 0:00:33]} e5 {[%emt 0:01:09]} 2. Nf3 {[%emt 0:00:38]} Nc6 {[%emt 0:00:14]} 3. d4 {[%emt 0:00:52]} exd4 {[%emt 0:00:05]} 4. Nxd4 {[%emt 0:00:23]} Nf6 {[%emt 0:00:15]} 5. Nxc6 {[%emt 0:00:33]} bxc6 {[%emt 0:00:01]} 6. Nd2 {[%emt 0:00:40]} Bc5 {[%emt 0:01:51]} 7. Nb3 {[%emt 0:00:10]} Bb6 {[%emt 0:09:42]} 8. e5 {[%emt 0:00:20]} Qe7 {[%emt 0:01:50]} 9. Qe2 {[%emt 0:11:13]} Nd5 {[%emt 0:00:06]} 10. c4 {[%emt 0:02:41]} Nb4 {[%emt 0:00:04]} 11. a3 {[%emt 0:05:23]} Na6 {[%emt 0:00:03]} 12. Bf4 {[%emt 0:00:15]} Rb8 {[%emt 0:03:51]} 13. O-O-O {[%emt 0:06:36]} Bxf2 {[%emt 0:03:34]} 14. Qxf2 {[%emt 0:02:42]} Rxb3 {[%emt 0:00:03]} 15. Bd3 {[%emt 0:00:25]} Nc5 {[%emt 0:04:00]} 16. Bc2 {[%emt 0:01:28]} Rb8 {[%emt 0:02:57]} 17. Rhe1 {[%emt 0:09:04]} Ne6 {[%emt 0:06:16]} 18. Bg3 {[%emt 0:09:04]} c5 {[%emt 0:08:25]} 19. Bh4 {[%emt 0:01:38]} g5 {[%emt 0:00:29]} 20. Bg3 {[%emt 0:00:04]} Bb7 {[%emt 0:04:01]} 21. h4 {[%emt 0:04:54]} Bc6 {[%emt 0:02:42]} 22. Kb1 {[%emt 0:00:52]} h6 {[%emt 0:03:30]} 23. hxg5 {[%emt 0:00:42]} hxg5 {[%emt 0:00:02]} 24. Rh1 {[%emt 0:00:22]} Rf8 {[%emt 0:00:05]} 25. Rh7 {[%emt 0:05:56]} Kd8 {[%emt 0:03:21]} 26. Qe3 {[%emt 0:01:51]} Nd4 {[%emt 0:14:06]} 27. Rd2 {[%emt 0:02:52]} Kc8 {[%emt 0:01:59]} 28. Ka2 {[%emt 0:08:31]} Qe6 {[%emt 0:05:49]} 29. Qc3 {[%emt 0:02:33]} Nxc2 {[%emt 0:07:58]} 30. Qxc2 {[%emt 0:00:20]} f5 {[%emt 0:00:05]} 31. exf6 {[%emt 0:00:32]} Be4 {[%emt 0:00:05]} 32. Rhxd7 {[%emt 0:21:11]} Qxd7 {[%emt 0:00:21]} 33. Qc3 {[%emt 0:00:39]} Qe6 {[%emt 0:00:48]} 34. Be5 {[%emt 0:00:24]} Rd8 {[%emt 0:02:46]} 35. Rf2 {[%emt 0:00:55]} Bg6 {[%emt 0:03:16]} 36. Re2 {[%emt 0:00:19]} Bd3 {[%emt 0:00:31]} 37. Qa5 {[%emt 0:00:16]} Qxc4+ {[%emt 0:00:06]} 38. Ka1 {[%emt 0:00:03]} Qc1+ {[%emt 0:00:06]} 39. Ka2 {[%emt 0:00:06]} Qb1# {[%emt 0:00:03]} 0-1

[Event "40th Cappelle Open 2024"]
[Site "Cappelle-la-Grande"]
[Date "2024.03.08"]
[Round "9.11"]
[White "Agdelen, Huseyin Can"]
[Black "Degraeve, Jean-Marc"]
[Result "1/2-1/2"]
[ECO "B32"]
[WhiteElo "2408"]
[BlackElo "2455"]
[Annotator "TA"]
[PlyCount "89"]
[EventDate "2024.03.02"]
[EventType "swiss"]
[EventCountry "FRA"]
[SourceTitle "playchess.com"]
[Source "ChessBase"]
[SourceQuality "1"]
[TimeControl "40/5400+30:1800+30"]

{[%evp 12,89,35,22,29,15,25,18,21,16,18,8,12,21,15,20,23,26,20,17,27,31,36,33,37,33,35,0,0,-25,0,-24,-28,-25,-15,-5,0,0,9,0,0,0,0,-141,-133,-150,-139,-143,-154,-128,-132,-122,-113,-141,-129,-153,-120,-193,-174,-189,-108,-203,-93,-121,-127,-164,-69,-59,98,70,108,108,118,114,104,60,64,57,50,0]} 1. e4 {[%emt 0:00:04]} c5 {[%emt 0:00:20]} 2. Nf3 {[%emt 0:00:18][%cal Bg1f3,Bf3d4,Bd4b5,Bb5c3][%mdl 32]} Nc6 {[%emt 0:00:08]} 3. d4 {[%emt 0:00:09]} cxd4 {[%emt 0:00:07]} 4. Nxd4 {[%emt 0:00:06]} e5 {[%emt 0:00:22]} 5. Nb5 {[%emt 0:01:02]} d6 {[%emt 0:00:11]} 6. c4 {[%emt 0:01:43]} Be7 {[%emt 0:00:11]} 7. Bd3 {[%emt 0:04:03]} a6 {[%emt 0:03:42]} 8. N5c3 {[%emt 0:00:07]} Bg5 {[%emt 0:00:06]} 9. Nd2 {[%emt 0:22:13]} Nf6 {[%emt 0:01:50][%cal Bg8f6,Bf6d7,Bd7c5][%mdl 32] The position is equal.} 10. h3 {[%emt 0:01:01]} O-O {[%emt 0:00:40]} 11. b3 {[%emt 0:09:07]} Nd7 {[%emt 0:01:48]} 12. Bb2 {[%emt 0:06:01]} Nc5 {[%emt 0:07:44]} 13. Nf3 {[%emt 0:01:15]} Bh6 {[%emt 0:05:16][%cal Ob7b5]} 14. O-O {[%emt 0:03:32]} g6 {[%emt 0:01:26]} 15. Bc2 {[%emt 0:04:49]} Ne6 {[%emt 0:23:07]} 16. Nd5 {[%emt 0:03:06]} Ned4 {[%emt 0:07:14]} 17. Nxd4 {[%emt 0:11:02]} Nxd4 {[%emt 0:01:11]} 18. f4 {[%emt 0:06:40]} Be6 {[%emt 0:01:15]} 19. Bxd4 {[%emt 0:10:21]} (19. fxe5 {is interesting.} dxe5 20. Nf6+ Kg7 21. Bd3) 19... exd4 {[%emt 0:00:12]} 20. Nb4 {[%emt 0:00:16][%cal Of4f5]} a5 {[%emt 0:06:57]} 21. Nd3 {[%emt 0:00:38]} Bd7 {[%emt 0:00:34]} 22. Qd2 {[%emt 0:08:25]} Re8 {[%emt 0:01:21]} 23. Rae1 {[%emt 0:00:25]} Qh4 {[%emt 0:05:16]} 24. Nc1 {[%emt 0:01:26][%cal Oc1e2]} g5 {[%emt 0:11:14]} 25. fxg5 {[%emt 0:03:31]} (25. Rf2 {looks sharper.} gxf4 26. Qxd4 a4 27. Ref1) 25... Bxg5 {[%emt 0:00:08]} 26. Qxd4 {[%emt 0:00:12]} Bxh3 {[%emt 0:01:04][%cal Oa5a4]} 27. Qxd6 {[%emt 0:00:12]} (27. gxh3 Qg3+ 28. Kh1 Qxh3+ 29. Kg1 Qg3+ 30. Kh1 Re6) (27. Nd3 $11 {remains equal.}) 27... Bg4 $1 $17 {[%emt 0:06:38]} 28. Bd1 {[%emt 0:01:49]} Bxd1 {[%emt 0:06:15]} (28... Bxc1 29. Bxg4 Bb2 30. Bh3 $11) 29. Qxd1 {[%emt 0:00:15]} Bf4 $1 {[%emt 0:00:07]} ({Don't take} 29... Rxe4 30. Rxe4 Qxe4 31. Qh5 $15) 30. Rxf4 {[%emt 0:00:44]} Qxf4 {[%emt 0:00:02]} 31. Nd3 {[%emt 0:00:06]} Qd6 {[%emt 0:01:07]} 32. Qf3 {[%emt 0:00:23]} Rad8 {[%emt 0:00:41]} 33. Nf4 {[%emt 0:00:19]} Qd4+ {[%emt 0:00:26]} 34. Kh1 {[%emt 0:00:17]} (34. Kf1 $17 {was called for.}) 34... Rd6 $19 {[%emt 0:00:45]} 35. Nh5 {[%emt 0:01:01]} Rh6 {[%emt 0:01:50]} (35... Re5 $19 {...Qd2 is the strong threat.} 36. Qg4+ Kf8 37. Qg7+ Ke8 (37... Ke7 $2 38. Nf4 $19)) 36. Rf1 {[%emt 0:00:09] [#]} (36. g4 $17) 36... Rf8 {[%emt 0:05:49]} ({Weaker is} 36... Rxe4 37. Qxf7+ Kh8 38. Qf8#) (36... f6 $1 $19 37. Re1 Kh8) 37. Qf5 {[%emt 0:00:19]} Kh8 {[%emt 0:01:11] aiming for ...Rg8.} 38. g4 {[%emt 0:00:47]} Qd3 {[%emt 0:00:40]} (38... Re8 $19 39. Rf4 f6) 39. Kg2 $15 {[%emt 0:01:18]} Rg6 $2 {[%emt 0:00:26] [#]} (39... Qc3 $15 {stays ahead.}) 40. Nf4 $1 $16 {[%emt 0:00:25] Some like it hot} Qd2+ {[%emt 0:00:35]} 41. Rf2 {[%emt 0:30:02]} Qd1 {[%emt 0:02:15]} 42. Nxg6+ {[%emt 0:00:00]} hxg6 {[%emt 0:00:01]} 43. Qf3 {[%emt 0:00:00]} ({Much worse is} 43. Qxa5 $6 Qxg4+ 44. Kh2 Qxe4 $15) 43... Qd7 {[%emt 0:00:14]} 44. Kg3 {[%emt 0:00:00]} Kg8 {[%emt 0:00:34]} 45. Qf6 {[%emt 0:00:00] Black had all chances to win.   Weighted Error Value: White=0.21 (precise) /Black=0.24 (precise) .  Mistake:       	White=4     	Black=4      Inaccurate:     	White=3     	Black=1      OK:         	White=12    	Black=12     Best:        	White=3     	Black=1      Strong:       	White=1     	Black=2} ({White should try} 45. e5 $14) 1/2-1/2

[Event "40th Cappelle Open 2024"]
[Site "Cappelle-la-Grande"]
[Date "2024.03.08"]
[Round "9.12"]
[White "Duboue, Peio"]
[Black "Bogdanov, Egor"]
[Result "1/2-1/2"]
[ECO "B22"]
[WhiteElo "2454"]
[BlackElo "2409"]
[Annotator "TA"]
[PlyCount "268"]
[EventDate "2024.03.02"]
[EventType "swiss"]
[EventCountry "FRA"]
[SourceTitle "playchess.com"]
[Source "ChessBase"]
[SourceQuality "1"]
[TimeControl "40/5400+30:1800+30"]

{[%evp 15,268,37,43,17,13,13,23,0,6,0,12,0,0,0,24,-26,-7,-21,-13,0,-10,-16,56,54,62,0,0,0,7,0,0,-27,-13,-20,-30,-28,37,17,22,0,26,22,26,0,0,0,0,0,24,0,0,0,0,0,0,0,0,0,0,-4,0,0,0,0,0,0,0,0,0,0,5,5,5,5,8,8,8,8,8,8,10,10,10,10,10,8,8,7,10,8,8,8,50,8,8,8,8,8,17,17,17,25,31,59,254,66,59,8,8,8,8,8,8,8,8,8,8,8,8,8,8,8,8,8,15,8,8,8,8,8,8,8,8,8,8,8,8,8,8,8,8,8,8,13,35,35,35,35,35,35,35,35,35,8,8,8,8,8,8,8,8,8,8,8,8,8,8,0,8,0,8,8,8,8,8,8,8,8,8,8,15,0,39,8,8,0,8,0,8,8,8,8,8,8,8,8,8,8,8,8,8,8,8,8,8,8,8,8,8,8,8,8,8,8,8,8,78,8,8,8,8,8,8,8,8,12,19,27,41,41,58,78,82,8,8,8,8,8,8,8,8,8,8,8,8,8,8,8,8,8,8,8,8,8,8]} 1. e4 {[%emt 0:03:32]} c5 {[%emt 0:00:05]} 2. c3 {[%emt 0:00:04]} Nf6 {[%emt 0:00:59]} 3. e5 {[%emt 0:00:05]} Nd5 {[%emt 0:00:03]} 4. d4 {[%emt 0:00:04]} cxd4 {[%emt 0:00:09]} 5. Nf3 {[%emt 0:00:04]} e6 {[%emt 0:00:35]} 6. cxd4 {[%emt 0:00:05]} b6 {[%emt 0:00:09]} 7. Bc4 {[%emt 0:00:15]} Bb7 {[%emt 0:00:59]} 8. O-O {[%emt 0:00:39]} Be7 {[%emt 0:02:19]} 9. Qe2 {[%emt 0:04:08]} O-O {[%emt 0:07:42]} 10. Rd1 {[%emt 0:01:30]} Qc7 {[%emt 0:17:31]} 11. Bd2 {[%emt 0:13:21] Weiß hat minimalen Vorteil.} d6 {[%emt 0:05:07]} 12. Na3 {[%emt 0:00:56]} a6 {[%emt 0:01:05]} 13. Rac1 {[%emt 0:00:33]} Qd8 {[%emt 0:05:06]} 14. Bd3 {[%emt 0:01:57]} Nd7 {[%emt 0:05:15] [#]} 15. h4 {[%emt 0:07:10]} b5 $11 {[%emt 0:07:04]} 16. Qe4 {[%emt 0:14:32][%csl Gd3][%cal Re4h7]} g6 $1 {[%emt 0:00:23]} 17. Qg4 {[%emt 0:00:46]} dxe5 {[%emt 0:01:28]} 18. dxe5 {[%emt 0:01:15]} h5 {[%emt 0:00:38]} (18... N5b6 $11 19. Bh6 Bxf3 20. Qxf3 Nxe5) 19. Qg3 $14 {[%emt 0:01:00][%cal Od3g6] Droht stark Bxg6!} Kg7 {[%emt 0:01:44]} 20. Nd4 {[%emt 0:04:49]} (20. Bb1 $14) 20... Qb6 $11 {[%emt 0:02:36]} ({Falsch wäre} 20... Nc5 $2 21. Rxc5 Qb6 (21... Bxc5 $2 {ist das falsche Schlagen.} 22. Nxe6+ Kh7 23. Nxc5 $18) 22. b4 $18) 21. Nf3 {[%emt 0:20:05]} Rac8 {[%emt 0:06:58]} 22. Bb1 {[%emt 0:01:28]} Rxc1 {[%emt 0:01:21]} 23. Rxc1 {[%emt 0:00:51]} Rc8 {[%emt 0:00:27]} 24. Rxc8 {[%emt 0:00:23]} Bxc8 {[%emt 0:00:01]} 25. Nc2 {[%emt 0:01:09]} Nc5 {[%emt 0:07:51]} (25... Bb7 $11) 26. Ncd4 {[%emt 0:08:40]} Na4 {[%emt 0:00:49]} 27. Bg5 {[%emt 0:01:45]} Qc5 {[%emt 0:03:01]} 28. Be4 {[%emt 0:01:36] Schwarz muss nun Bxd5 beachten.} Nab6 {[%emt 0:06:53]} 29. Bxd5 {[%emt 0:02:21]} Nxd5 {[%emt 0:00:20]} 30. Bxe7 {[%emt 0:00:26]} Nxe7 {[%emt 0:03:23]} 31. Qg5 {[%emt 0:00:35] Verhindert Qc1+} Nd5 {[%emt 0:00:47] Pariert Qf6+. Schwarz hat schwache schwarze Felder} 32. a3 {[%emt 0:03:10]} b4 {[%emt 0:02:49]} 33. axb4 {[%emt 0:02:59]} Qxb4 {[%emt 0:00:01]} 34. Qd8 {[%emt 0:01:59] Es drohte Qxb2} Bb7 {[%emt 0:00:48]} 35. b3 {[%emt 0:02:08]} Qe7 {[%emt 0:01:39]} 36. Qxe7 {[%emt 0:00:53]} Nxe7 {[%emt 0:00:02][%mdl 4096] Endspiel. KBN-KNN} 37. Nd2 {[%emt 0:00:14]} Nd5 {[%emt 0:01:55]} 38. g3 {[%emt 0:00:54]} Nb6 {[%emt 0:01:46]} 39. Kf1 {[%emt 0:00:51]} a5 {[%emt 0:00:36]} 40. Ke2 {[%emt 0:00:33]} a4 {[%emt 0:01:50]} 41. bxa4 {[%emt 0:30:04]} Nxa4 {[%emt 0:30:15]} 42. Kd3 {[%emt 0:00:00]} Bd5 {[%emt 0:00:00]} 43. Nb5 {[%emt 0:00:00]} Nc5+ {[%emt 0:00:00]} 44. Kd4 {[%emt 0:00:00]} Nd7 {[%emt 0:00:00]} 45. Nc7 {[%emt 0:00:00]} Bc6 {[%emt 0:00:00]} 46. Ne8+ {[%emt 0:00:00]} Kf8 {[%emt 0:00:00]} 47. Nf6 {[%emt 0:00:00]} Ke7 {[%emt 0:00:00]} 48. Nxd7 {[%emt 0:00:00]} Kxd7 {[%emt 0:00:00] KB-KN} 49. Ke3 {[%emt 0:00:00]} Ke7 {[%emt 0:00:00]} 50. Nb3 {[%emt 0:00:00]} Bd5 {[%emt 0:00:00]} 51. Nc5 {[%emt 0:00:00]} Bc6 {[%emt 0:00:00]} 52. Nd3 {[%emt 0:00:00]} Bb5 {[%emt 0:00:00]} 53. Nb4 {[%emt 0:00:00]} Ba4 {[%emt 0:00:00]} 54. Kd4 {[%emt 0:00:00]} Ke8 {[%emt 0:00:00]} 55. Kc5 {[%emt 0:00:00]} Ke7 {[%emt 0:00:00]} 56. Na2 {[%emt 0:00:00]} Bd7 {[%emt 0:00:00]} 57. Nc3 {[%emt 0:00:00]} Be8 {[%emt 0:00:00]} 58. Ne4 {[%emt 0:00:00]} Ba4 {[%emt 0:00:00]} 59. Nf6 {[%emt 0:00:00] Nh7 wäre nun fies.} Bd1 $2 {[%emt 0:00:00]} ({Vorzuziehen ist} 59... Kf8 $14) 60. Kd4 $2 {[%emt 0:00:00]} (60. Nh7 $18) 60... Kf8 $1 $14 {[%emt 0:00:00]} 61. Ke3 {[%emt 0:00:00] Verhindert Bf3} (61. Ne4 $14) 61... Ba4 {[%emt 0:00:00]} 62. Kf4 {[%emt 0:00:00]} Kg7 {[%emt 0:00:00]} 63. Ne4 {[%emt 0:00:00]} Bc6 {[%emt 0:00:00]} 64. Nc5 {[%emt 0:00:00]} Kh6 {[%emt 0:00:00]} 65. Nb3 {[%emt 0:00:00]} Bd5 {[%emt 0:00:00]} 66. Nd4 {[%emt 0:00:00]} Bc4 {[%emt 0:00:00]} 67. Nf3 {[%emt 0:00:00]} Bd5 {[%emt 0:00:00]} 68. Nd2 {[%emt 0:00:00]} Ba2 {[%emt 0:00:00]} 69. Ne4 {[%emt 0:00:00]} Bb3 {[%emt 0:00:00]} 70. Nd6 {[%emt 0:00:00]} Kg7 {[%emt 0:00:00]} 71. Kg5 {[%emt 0:00:00]} Bd1 {[%emt 0:00:00]} 72. Nb5 {[%emt 0:00:00]} Be2 {[%emt 0:00:52]} 73. Nd4 {[%emt 0:01:10]} Bd3 {[%emt 0:00:11]} 74. f3 {[%emt 0:04:21][%cal Bf2f3,Bf3g4,Bg4h5,Bh5h6][%mdl 32]} Bb1 {[%emt 0:02:46]} 75. Nb3 {[%emt 0:02:20]} Bc2 {[%emt 0:00:25]} 76. Nd2 {[%emt 0:01:46]} Bd1 {[%emt 0:00:52]} 77. g4 {[%emt 0:00:30]} hxg4 $1 {[%emt 0:00:20]} 78. fxg4 {[%emt 0:00:01]} Be2 {[%emt 0:00:24]} 79. Ne4 {[%emt 0:00:31]} Bd3 {[%emt 0:13:05]} 80. Nd6 $1 {[%emt 0:00:02]} Bc2 {[%emt 0:03:08]} 81. h5 {[%emt 0:00:27]} gxh5 {[%emt 0:00:13]} 82. gxh5 {[%emt 0:00:02]} Bd3 {[%emt 0:00:48]} 83. h6+ {[%emt 0:00:11]} Kh7 {[%emt 0:02:14]} 84. Nxf7 {[%emt 0:00:01]} Bc4 {[%emt 0:01:00]} 85. Nd6 $1 {[%emt 0:00:11]} Bd5 {[%emt 0:00:28]} 86. Ne8 {[%emt 0:00:30]} Bc4 {[%emt 0:00:21]} 87. Nf6+ {[%emt 0:04:37]} Kh8 {[%emt 0:00:01]} 88. Ne4 {[%emt 0:00:10]} Kh7 {[%emt 0:00:23]} 89. Nc3 {[%emt 0:01:05]} Bb3 {[%emt 0:00:24]} 90. Ne2 {[%emt 0:00:51]} Bc4 {[%emt 0:00:45]} 91. Nc3 {[%emt 0:01:38]} Bb3 {[%emt 0:00:11]} 92. Ne4 {[%emt 0:00:01]} Bc4 {[%emt 0:00:30]} 93. Nc5 {[%emt 0:00:01]} Bd5 {[%emt 0:00:24]} 94. Nd7 {[%emt 0:00:01]} Bc4 {[%emt 0:00:20]} 95. Nf8+ {[%emt 0:00:19]} Kg8 {[%emt 0:01:32]} 96. Kf6 {[%emt 0:00:14]} Ba2 {[%emt 0:00:48]} 97. Ke7 {[%emt 0:01:38]} (97. Nxe6 $5 Kh7 $8 98. Nf8+ Kxh6 99. Ne6 $11) 97... Bc4 {[%emt 0:00:37]} (97... Bd5 $5) 98. Kf6 {[%emt 0:00:55]} Ba2 {[%emt 0:00:01]} 99. Nd7 {[%emt 0:00:34]} (99. h7+ $5 Kh8 100. Kg6 $16 (100. Nxe6 Kxh7 101. Nd4 Kh8 $11)) 99... Kh7 {[%emt 0:00:08]} 100. Kg5 {[%emt 0:00:01]} Bc4 {[%emt 0:00:21]} 101. Nf6+ {[%emt 0:00:55]} Kh8 {[%emt 0:00:24]} 102. Kh5 {[%emt 0:00:01]} Be2+ {[%emt 0:00:49]} 103. Kh4 {[%emt 0:00:23]} Bd1 {[%emt 0:00:25]} 104. Ne4 {[%emt 0:00:26] Weiss droht Nc5 und Matt.} Kh7 {[%emt 0:00:31]} 105. Kg5 {[%emt 0:00:05] Weiss will mit Nc5 Matt setzen.} Bb3 {[%emt 0:00:28]} 106. Nf6+ {[%emt 0:01:40]} Kh8 {[%emt 0:00:12]} 107. Kg6 {[%emt 0:00:31]} Bc2+ {[%emt 0:00:41]} 108. Kf7 {[%emt 0:00:05]} Bb3 $1 {[%emt 0:00:50]} 109. Kf8 {[%emt 0:00:36]} Ba2 {[%emt 0:00:32]} 110. Ke8 {[%emt 0:00:06]} Bb3 {[%emt 0:00:22]} 111. Kd8 {[%emt 0:00:39]} Ba2 {[%emt 0:00:13]} 112. Kc7 {[%emt 0:00:04]} Bb3 {[%emt 0:00:18]} 113. Kb6 {[%emt 0:00:02]} Ba2 {[%emt 0:00:39]} 114. Ka5 {[%emt 0:00:19]} Bb3 {[%emt 0:00:30]} 115. Kb4 {[%emt 0:00:13][%cal Of6e4]} Ba2 {[%emt 0:00:23] [#]} (115... Bc2 $11 {bleibt in der Remisbreite.}) 116. Kc3 {[%emt 0:00:11]} (116. Ne4 $1 $16 {[%cal Re4c3] Droht Matt per Nc3.} Bb1 117. Ng5) 116... Bb1 $11 {[%emt 0:00:25]} 117. Kb2 {[%emt 0:00:01]} Bd3 {[%emt 0:00:29]} 118. Kc1 {[%emt 0:00:02]} Bc4 {[%emt 0:00:16]} 119. Kc2 {[%emt 0:06:23]} Bb3+ {[%emt 0:00:24]} 120. Kc3 {[%emt 0:00:05][%cal Of6e4]} (120. Kd2 $5) 120... Ba2 {[%emt 0:00:09]} 121. Kb4 {[%emt 0:00:06]} Bb1 {[%emt 0:00:08] Lässt Ne4 nicht zu} 122. Kc5 {[%emt 0:00:04]} Ba2 {[%emt 0:00:03]} 123. Kd6 {[%emt 0:00:03]} Bc4 {[%emt 0:00:35]} 124. Ne4 {[%emt 0:02:18]} ({Besser ist} 124. Kc6 $16) 124... Kh7 {[%emt 0:00:09] Die Stellung ist ausgeglichen.} 125. Ng5+ {[%emt 0:00:01]} Kxh6 {[%emt 0:00:07]} 126. Nxe6 {[%emt 0:00:01]} Ba2 {[%emt 0:00:45]} 127. Nc7 {[%emt 0:01:08]} Bg8 {[%emt 0:00:37]} 128. Nd5 {[%emt 0:01:08]} Kg5 {[%emt 0:00:41]} 129. Nf6 {[%emt 0:00:25]} Bf7 {[%emt 0:00:11]} 130. Ne4+ {[%emt 0:01:15]} Kf4 {[%emt 0:00:58]} 131. Nc5 {[%emt 0:00:32]} Bg8 {[%emt 0:00:33]} 132. Nd7 {[%emt 0:00:09]} Bf7 {[%emt 0:00:52]} 133. Ke7 {[%emt 0:00:06]} Ba2 {[%emt 0:00:19]} 134. Kf6 {[%emt 0:00:07]} Bb3 {[%emt 0:00:45] Gewichteter Fehlerwert: Weiß=0.13 (sehr präzise) /Schwarz=0.14 (sehr präzise) .  Verlustzug:     	---       	Schwarz=1     Gewinn verpasst:   	Weiß=1     	---        Fehler:       	Weiß=5     	Schwarz=3     Ungenau:       	Weiß=5     	Schwarz=2     OK:         	Weiß=34    	Schwarz=46    Bester:       	Weiß=4     	Schwarz=16    Stark:        	Weiß=2     	Schwarz=4} 1/2-1/2